bitfinex/quotes_BTCUSD_20240703
["timestamp","ask_amount","ask_price","bid_price","bid_amount"]
[1720025110665,0.22316395,60550.0,60549.0,0.17454047]
[1720025112235,0.22316395,60550.0,60549.0,0.08215582]
[1720025112408,2.37270295,60550.0,60549.0,0.08215582]
[1720025112610,0.22316395,60550.0,60549.0,0.35627278]
[1720025112974,0.22316395,60550.0,60549.0,0.35427278]
[1720025113529,0.75234395,60550.0,60549.0,0.35427278]
[1720025113741,0.83297695,60550.0,60549.0,0.30899193]
[1720025114123,0.83297695,60550.0,60549.0,0.17254047]
[1720025114515,0.83297695,60550.0,60549.0,0.30899193]
[1720025114936,0.83397695,60550.0,60549.0,0.08015582]
[1720025115138,0.83397695,60550.0,60544.0,0.09350865]
[1720025115139,0.87947695,60550.0,60544.0,0.09350865]
[1720025115335,0.1892,60545.0,60544.0,0.09350865]
[1720025115512,0.22306395,60545.0,60544.0,0.09350865]
[1720025115898,0.1892,60545.0,60544.0,0.09350865]
[1720025116152,0.22257785,60545.0,60544.0,0.09350865]
[1720025116352,0.22257785,60545.0,60544.0,0.22996011]
[1720025116510,0.22257785,60545.0,60544.0,0.27724096]
[1720025117152,0.1892,60545.0,60544.0,0.27524096]
[1720025117500,0.1892,60545.0,60544.0,0.43553976]
[1720025117816,0.1892,60545.0,60544.0,0.68223976]
[1720025119453,0.21632292,60545.0,60544.0,0.57013976]
[1720025119807,0.21632324,60545.0,60544.0,0.09750865]
[1720025119985,0.26132324,60545.0,60544.0,0.09750865]
[1720025120322,0.26132324,60545.0,60544.0,0.09950865]
[1720025120702,0.26132324,60545.0,60544.0,0.10850865]
[1720025121169,0.26132324,60545.0,60544.0,0.09350865]
[1720025122031,0.26132324,60545.0,60544.0,0.22996011]
[1720025122459,0.1902,60545.0,60544.0,0.22996011]
[1720025122613,0.26539268,60545.0,60544.0,0.22996011]
[1720025122838,0.26439268,60545.0,60544.0,0.23096011]
[1720025123210,0.26539272,60545.0,60544.0,0.23096011]
[1720025123547,0.26539272,60545.0,60544.0,0.22996011]
[1720025123752,0.26539272,60545.0,60544.0,0.09350865]
[1720025123970,0.26539272,60545.0,60544.0,0.09450865]
[1720025124174,0.26539272,60545.0,60544.0,0.43653976]
[1720025125400,0.07619272,60545.0,60544.0,0.75647404]
[1720025126405,0.03859638,60545.0,60544.0,0.75647404]
[1720025127523,0.001,60545.0,60544.0,0.75647404]
[1720025128853,0.0002,60550.0,60549.0,0.38851893]
[1720025129087,0.0002,60550.0,60549.0,0.76055004]
[1720025129964,0.0002,60550.0,60549.0,1.06055004]
[1720025130174,0.002,60569.0,60562.0,0.09238465]
[1720025130306,0.002,60569.0,60562.0,0.84070586]
[1720025133077,0.002,60569.0,60562.0,0.84570586]
[1720025133495,0.002,60569.0,60562.0,0.84560586]
[1720025133826,0.002,60569.0,60562.0,0.84550586]
[1720025134263,0.002,60569.0,60562.0,0.84540586]
[1720025134773,0.002,60569.0,60562.0,0.85230586]
[1720025134980,0.002,60569.0,60562.0,1.15230586]
[1720025135406,0.002,60569.0,60568.0,0.34005124]
[1720025135602,0.002,60569.0,60568.0,1.06235004]
[1720025135993,0.002,60569.0,60568.0,1.36235004]
[1720025136389,0.002,60569.0,60568.0,1.36070947]
[1720025136735,0.002,60569.0,60568.0,1.37470947]
[1720025138405,0.002,60569.0,60568.0,0.75870947]
[1720025140052,0.002,60569.0,60568.0,0.78870947]
[1720025140941,0.002,60569.0,60568.0,0.78880947]
[1720025141541,0.002,60569.0,60568.0,0.75880947]
[1720025142363,0.002,60569.0,60568.0,0.78880947]
[1720025146627,0.002,60569.0,60568.0,0.78870947]
[1720025147733,0.002,60569.0,60568.0,0.78880947]
[1720025150162,0.002,60569.0,60568.0,1.08880947]
[1720025150747,0.002,60569.0,60568.0,0.78880947]
[1720025151553,0.002,60569.0,60568.0,0.67410947]
[1720025151753,0.002,60569.0,60568.0,0.49680947]
[1720025152926,0.002,60569.0,60568.0,0.48280947]
[1720025153562,0.002,60569.0,60568.0,0.49680947]
[1720025153988,0.0021,60569.0,60568.0,0.77110947]
[1720025155209,0.0021,60569.0,60568.0,0.77100947]
[1720025155626,0.0021,60569.0,60568.0,0.78200947]
[1720025158564,0.0022,60569.0,60568.0,0.78200947]
[1720025159813,0.0022,60569.0,60568.0,0.75200947]
[1720025160399,0.0022,60569.0,60568.0,0.49370947]
[1720025160576,0.0022,60569.0,60568.0,0.16165146]
[1720025160577,0.0101,60569.0,60568.0,0.16165146]
[1720025160770,0.0552,60569.0,60568.0,0.16165146]
[1720025161103,0.08427215,60569.0,60568.0,0.0252]
[1720025161300,0.0557,60569.0,60568.0,0.0252]
[1720025161439,1.87808664,60569.0,60568.0,0.0252]
[1720025161646,1.95505545,60569.0,60568.0,0.0252]
[1720025161927,1.67974845,60569.0,60568.0,0.0142]
[1720025162124,1.00973745,60569.0,60568.0,0.0142]
[1720025162282,1.00973745,60569.0,60568.0,0.0002]
[1720025162489,1.01173745,60569.0,60568.0,0.0002]
[1720025162890,0.93276864,60569.0,60568.0,0.13665146]
[1720025163065,0.0552,60569.0,60568.0,0.18193231]
[1720025163273,0.09155402,60569.0,60568.0,0.18293231]
[1720025163469,0.09055402,60569.0,60568.0,0.13765146]
[1720025163926,0.09155402,60569.0,60568.0,0.13865146]
[1720025164172,0.09142796,60569.0,60568.0,0.13865146]
[1720025164724,0.09142796,60569.0,60568.0,0.27591696]
[1720025165130,0.08942796,60569.0,60568.0,0.27491696]
[1720025165341,0.03942796,60569.0,60568.0,0.27591696]
[1720025165743,0.03542796,60569.0,60568.0,0.27391696]
[1720025166214,0.03542796,60569.0,60568.0,0.22863611]
[1720025166502,0.03842796,60569.0,60568.0,0.22863611]
[1720025166928,0.04042796,60569.0,60568.0,0.22863611]
[1720025167136,0.27222796,60569.0,60568.0,0.22863611]
[1720025167387,0.76920496,60569.0,60568.0,0.22954911]
[1720025167587,0.92720496,60569.0,60568.0,0.22954911]
[1720025167946,0.92720496,60569.0,60568.0,0.001113]
[1720025167947,0.92770496,60569.0,60568.0,0.001113]
[1720025168202,0.0005,60567.0,60563.0,0.09198465]
[1720025168404,0.0005,60563.0,60562.0,0.08015582]
[1720025168607,2.26738696,60563.0,60559.0,0.09198465]
[1720025168820,0.1892,60560.0,60559.0,0.09198465]
[1720025168999,0.1892,60560.0,60545.0,0.1421]
[1720025169000,0.0005,60559.0,60553.0,0.09198465]
[1720025169199,1.83401296,60560.0,60553.0,0.09198465]
[1720025169200,0.1892,60554.0,60553.0,0.09198465]
[1720025169418,0.22756357,60554.0,60553.0,0.09198465]
[1720025169620,0.22756357,60554.0,60551.0,0.21660728]
[1720025169868,0.52434313,60553.0,60551.0,0.21660728]
[1720025170016,0.04866713,60552.0,60551.0,0.21660728]
[1720025170197,0.04866713,60552.0,60551.0,0.08015582]
[1720025170600,0.04866713,60553.0,60551.0,0.08015582]
[1720025170904,0.053,60550.0,60549.0,0.08015582]
[1720025171109,1.192479,60550.0,60549.0,0.08015582]
[1720025171308,1.31812813,60550.0,60549.0,0.08015582]
[1720025171508,1.31802813,60550.0,60549.0,0.08015582]
[1720025172045,1.32292813,60550.0,60549.0,0.08115582]
[1720025172420,1.31792813,60550.0,60549.0,0.08015582]
[1720025172748,1.32492813,60550.0,60549.0,0.08115582]
[1720025172891,1.22158813,60550.0,60549.0,0.08115582]
[1720025173246,1.172921,60550.0,60549.0,0.08115582]
[1720025173461,1.2505856,60550.0,60549.0,0.08115582]
[1720025173609,1.172921,60550.0,60549.0,0.08115582]
[1720025173807,1.174921,60550.0,60549.0,0.08115582]
[1720025174507,1.175421,60550.0,60549.0,0.001]
[1720025174714,1.174921,60550.0,60549.0,0.001]
[1720025175119,1.29295977,60550.0,60549.0,0.001]
[1720025175684,1.174921,60550.0,60549.0,0.001]
[1720025175981,1.29286176,60550.0,60549.0,0.001]
[1720025176521,1.29326176,60550.0,60549.0,0.001]
[1720025177247,1.29316176,60550.0,60549.0,0.001]
[1720025177589,1.29306176,60550.0,60549.0,0.001]
[1720025178438,1.48226176,60550.0,60549.0,0.001]
[1720025179069,1.47722998,60550.0,60549.0,0.001]
[1720025180229,1.47672998,60550.0,60549.0,0.001]
[1720025180442,0.0005,60548.0,60544.0,0.000924]
[1720025180676,0.1892,60545.0,60544.0,0.000924]
[1720025180863,2.40987377,60545.0,60544.0,0.000924]
[1720025181067,0.0524,60539.0,60535.0,0.09198465]
[1720025181271,0.0524,60539.0,60532.0,0.13645146]
[1720025181272,0.1892,60536.0,60532.0,0.13645146]
[1720025181469,0.83292177,60538.0,60535.0,0.11464953]
[1720025181470,0.03967185,60538.0,60535.0,0.11464953]
[1720025181772,0.1892,60536.0,60535.0,0.11464953]
[1720025182067,0.58530859,60536.0,60535.0,0.11464953]
[1720025182366,0.58637473,60536.0,60535.0,0.11464953]
[1720025183224,0.30226873,60536.0,60535.0,0.80686529]
[1720025183398,0.03780231,60536.0,60535.0,0.80686529]
[1720025183568,0.1892,60539.0,60538.0,0.27381696]
[1720025183978,0.0079,60547.0,60544.0,0.13645146]
[1720025184181,0.1892,60545.0,60544.0,0.13645146]
[1720025184421,0.88532569,60545.0,60544.0,0.13645146]
[1720025184581,1.20570469,60545.0,60544.0,0.13645146]
[1720025184777,0.19113669,60545.0,60544.0,0.18183231]
[1720025184977,0.19113669,60545.0,60544.0,0.27381696]
[1720025184978,0.38033669,60545.0,60544.0,0.27381696]
[1720025185173,0.26381869,60545.0,60544.0,0.27381696]
[1720025185420,0.1892,60545.0,60544.0,0.27381696]
[1720025185826,0.26366811,60545.0,60544.0,0.27381696]
[1720025186846,0.26366811,60545.0,60544.0,0.22843611]
[1720025187064,0.27166811,60545.0,60544.0,0.22943611]
[1720025187436,0.27166811,60545.0,60544.0,0.27481696]
[1720025187633,0.50364311,60545.0,60544.0,0.22943611]
[1720025188145,0.50964311,60545.0,60544.0,0.22943611]
[1720025188372,0.50964311,60545.0,60544.0,0.27481696]
[1720025188373,0.27766811,60545.0,60544.0,0.27481696]
[1720025188574,0.08838827,60545.0,60544.0,0.51851696]
[1720025188794,0.014,60545.0,60544.0,0.67881576]
[1720025189557,0.008,60545.0,60544.0,0.67881576]
[1720025189916,0.1892,60548.0,60547.0,0.09198465]
[1720025190240,0.25083071,60548.0,60545.0,0.09198465]
[1720025190372,0.06163071,60547.0,60545.0,0.09198465]
[1720025190572,0.94807571,60547.0,60545.0,0.09198465]
[1720025190799,0.1892,60548.0,60545.0,0.09198465]
[1720025190800,1.20677271,60546.0,60545.0,0.09198465]
[1720025190994,0.0445,60545.0,60544.0,0.003]
[1720025191317,1.33731171,60545.0,60542.0,0.13645146]
[1720025191478,0.1892,60543.0,60542.0,0.13645146]
[1720025191676,1.0504531,60543.0,60542.0,0.13645146]
[1720025191895,0.7045131,60543.0,60542.0,0.21660728]
[1720025192100,0.6364371,60543.0,60542.0,0.35397278]
[1720025192300,0.2512321,60543.0,60542.0,0.30859193]
[1720025192602,0.2512321,60543.0,60542.0,0.27381696]
[1720025193384,0.0001,60545.0,60542.0,0.27381696]
[1720025193385,0.0001,60545.0,60544.0,0.27381696]
[1720025193571,0.0001,60545.0,60544.0,0.55206826]
[1720025193801,0.0001,60545.0,60544.0,0.55216826]
[1720025193996,0.0001,60545.0,60544.0,0.58216826]
[1720025194193,0.0001,60545.0,60544.0,0.82666826]
[1720025194750,0.0042,60545.0,60544.0,0.82666826]
[1720025195385,0.0042,60545.0,60544.0,1.12666826]
[1720025195632,0.03803,60569.0,60544.0,1.12666826]
[1720025195633,0.0004,60568.0,60562.0,0.09198465]
[1720025195847,0.1892,60563.0,60562.0,0.09198465]
[1720025196035,0.22775723,60563.0,60562.0,0.09198465]
[1720025196442,0.22775723,60563.0,60558.0,0.09198465]
[1720025196591,1.12427523,60562.0,60558.0,0.22843611]
[1720025196793,1.09807523,60561.0,60558.0,0.22843611]
[1720025197040,0.03855723,60560.0,60558.0,0.09198465]
[1720025197246,0.03855723,60559.0,60558.0,0.09198465]
[1720025197683,0.23620423,60559.0,60554.0,0.22843611]
[1720025197950,0.1892,60556.0,60555.0,0.46860947]
[1720025198184,0.659404,60556.0,60555.0,0.46860947]
[1720025198374,0.1892,60556.0,60555.0,0.46860947]
[1720025198571,0.69656164,60556.0,60555.0,0.25228345]
[1720025198906,0.89119925,60556.0,60551.0,0.09198465]
[1720025199052,1.90638525,60555.0,60551.0,0.09198465]
[1720025199377,0.46650825,60554.0,60552.0,0.21660728]
[1720025199581,0.1892,60556.0,60554.0,0.13645146]
[1720025199811,0.88949232,60555.0,60554.0,0.13645146]
[1720025200015,0.74329232,60555.0,60554.0,0.13645146]
[1720025200220,0.74829232,60555.0,60554.0,0.13645146]
[1720025200641,0.74329232,60555.0,60554.0,0.13645146]
[1720025200929,0.74329232,60555.0,60554.0,0.001]
[1720025200930,0.74369232,60555.0,60554.0,0.001]
[1720025201097,0.0004,60554.0,60545.0,0.13645146]
[1720025201329,0.0004,60554.0,60544.0,0.09208465]
[1720025201330,0.1911,60550.0,60544.0,0.09208465]
[1720025201531,0.1892,60545.0,60544.0,0.09208465]
[1720025201696,0.22732338,60545.0,60544.0,0.09208465]
[1720025202053,0.44854809,60545.0,60544.0,0.0001]
[1720025202392,0.44854809,60545.0,60540.0,0.13645146]
[1720025202610,1.65208909,60544.0,60542.0,0.13645146]
[1720025202818,1.55779409,60543.0,60542.0,0.13645146]
[1720025203009,1.55779409,60543.0,60539.0,0.09290865]
[1720025203331,0.1892,60540.0,60539.0,0.27484096]
[1720025203546,0.23762809,60540.0,60539.0,0.27484096]
[1720025204130,0.23762809,60540.0,60539.0,0.68643976]
[1720025204131,0.04842809,60540.0,60539.0,0.68643976]
[1720025204331,0.1892,60544.0,60543.0,0.13645146]
[1720025204567,0.19950497,60544.0,60543.0,0.13645146]
[1720025204767,0.24766613,60544.0,60543.0,0.22843611]
[1720025205266,0.24776544,60544.0,60543.0,0.22843611]
[1720025205466,0.24766544,60544.0,60543.0,0.27391696]
[1720025206202,0.24756544,60544.0,60543.0,0.22843611]
[1720025207023,0.24956544,60544.0,60543.0,0.22843611]
[1720025207279,0.24956544,60544.0,60543.0,0.27391696]
[1720025207480,0.25356544,60544.0,60543.0,0.27391696]
[1720025207680,0.25356544,60544.0,60543.0,0.22843611]
[1720025208086,0.06485626,60544.0,60543.0,0.43421576]
[1720025208220,0.06485626,60544.0,60543.0,0.46421576]
[1720025208665,0.01630482,60544.0,60543.0,0.71951576]
[1720025208887,0.01630482,60544.0,60543.0,0.75400947]
[1720025209491,0.01620482,60544.0,60543.0,0.75400947]
[1720025210652,0.01610482,60544.0,60543.0,0.75400947]
[1720025211009,0.0058,60544.0,60543.0,0.75400947]
[1720025211620,0.01610323,60544.0,60543.0,0.72400947]
[1720025211821,0.01610323,60544.0,60543.0,0.75400947]
[1720025212629,0.01210323,60544.0,60543.0,0.75400947]
[1720025213072,0.01210323,60544.0,60543.0,0.76300947]
[1720025213073,0.01310323,60544.0,60543.0,0.76300947]
[1720025213574,0.01130323,60544.0,60543.0,0.76300947]
[1720025213887,0.01230323,60544.0,60543.0,0.77400947]
[1720025214083,0.14832203,60566.0,60560.0,0.13645146]
[1720025214301,0.1892,60561.0,60560.0,0.13645146]
[1720025214442,0.23341923,60561.0,60560.0,0.18193231]
[1720025214642,0.23341923,60561.0,60557.0,0.09198465]
[1720025214643,0.23341923,60561.0,60558.0,0.13645146]
[1720025214979,0.23341923,60561.0,60560.0,0.13645146]
[1720025214980,0.1892,60561.0,60560.0,0.13645146]
[1720025215190,0.23341302,60561.0,60560.0,0.001]
[1720025215737,0.32549155,60561.0,60554.0,0.09198465]
[1720025215964,0.1892,60555.0,60552.0,0.09198465]
[1720025216163,0.1892,60555.0,60552.0,0.22843611]
[1720025216164,0.70167202,60554.0,60552.0,0.22843611]
[1720025216418,0.24581602,60553.0,60552.0,0.22843611]
[1720025216623,0.0016,60549.0,60539.0,0.09290865]
[1720025216829,2.133658,60548.0,60542.0,0.09198465]
[1720025217021,0.1892,60543.0,60542.0,0.09198465]
[1720025218413,1.157617,60543.0,60542.0,0.09198465]
[1720025218673,1.157617,60543.0,60540.0,0.09198465]
[1720025218674,1.540989,60543.0,60540.0,0.09198465]
[1720025218944,0.746686,60542.0,60540.0,0.09198465]
[1720025219512,0.746586,60542.0,60539.0,0.09290865]
[1720025219710,1.92855,60542.0,60540.0,0.09198465]
[1720025220019,1.692239,60541.0,60540.0,0.09198465]
[1720025220221,0.0003,60540.0,60539.0,0.000924]
[1720025220428,1.83237684,60540.0,60539.0,0.000924]
[1720025220614,0.56402214,60540.0,60539.0,0.000924]
[1720025221429,0.32666414,60540.0,60539.0,0.000924]
[1720025221665,0.29466414,60540.0,60539.0,0.000924]
[1720025222095,0.205903,60540.0,60539.0,0.000924]
[1720025222296,0.205903,60540.0,60539.0,0.002924]
[1720025223163,0.205903,60540.0,60539.0,0.13937546]
[1720025223728,0.14832203,60548.0,60542.0,0.13645146]
[1720025224029,0.1892,60543.0,60542.0,0.13645146]
[1720025224238,1.09826,60543.0,60542.0,0.29675026]
[1720025224438,2.012929,60549.0,60548.0,0.27391696]
[1720025224636,0.03600695,60549.0,60548.0,0.27391696]
[1720025224858,0.03600695,60549.0,60548.0,0.67481576]
[1720025225065,0.066186,60565.0,60557.0,0.27391696]
[1720025225066,0.1892,60558.0,60557.0,0.27391696]
[1720025225298,0.22518251,60558.0,60557.0,0.27391696]
[1720025225485,0.22518251,60558.0,60557.0,0.27381696]
[1720025225704,0.22502466,60558.0,60557.0,0.27381696]
[1720025226221,0.18904215,60558.0,60557.0,0.27381696]
[1720025226451,0.21988099,60558.0,60557.0,0.27381696]
[1720025227051,0.54862699,60558.0,60557.0,0.22943611]
[1720025227202,0.71768399,60558.0,60557.0,0.09298465]
[1720025227402,0.71768399,60558.0,60557.0,0.001]
[1720025228324,0.71808399,60558.0,60557.0,0.001]
[1720025228871,0.0004,60552.0,60545.0,0.09198465]
[1720025229095,1.81939084,60551.0,60545.0,0.09198465]
[1720025229290,0.1892,60546.0,60545.0,0.09198465]
[1720025229463,0.783977,60546.0,60545.0,0.09198465]
[1720025229699,0.82472682,60546.0,60543.0,0.09208465]
[1720025229899,0.04074982,60545.0,60543.0,0.09198465]
[1720025230107,0.1892,60546.0,60543.0,0.09198465]
[1720025230108,0.04074982,60544.0,60543.0,0.09198465]
[1720025230234,0.04074982,60544.0,60541.0,0.13645146]
[1720025230235,0.01030431,60544.0,60541.0,0.13645146]
[1720025230444,0.03084551,60543.0,60539.0,0.13737546]
[1720025230647,0.03044551,60542.0,60540.0,0.22843611]
[1720025230851,0.21964551,60541.0,60540.0,0.22843611]
[1720025231225,0.21954551,60541.0,60540.0,0.22843611]
[1720025231468,0.88762551,60541.0,60540.0,0.22843611]
[1720025231900,0.88762551,60541.0,60540.0,0.13645146]
[1720025232041,0.88762551,60541.0,60539.0,0.000924]
[1720025232248,0.76202951,60540.0,60539.0,0.000924]
[1720025232479,0.541984,60540.0,60539.0,0.13737546]
[1720025232684,0.36133058,60540.0,60539.0,0.08107982]
[1720025232880,0.2989832,60540.0,60539.0,0.08107982]
[1720025233698,0.0381352,60540.0,60539.0,0.35489678]
[1720025233996,0.0391352,60540.0,60539.0,0.35489678]
[1720025234199,0.0391352,60540.0,60539.0,0.17306447]
[1720025234494,0.4067752,60540.0,60539.0,0.09290865]
[1720025234696,0.0391352,60540.0,60539.0,0.51519558]
[1720025234902,0.0391352,60540.0,60539.0,0.84297355]
[1720025235107,0.001,60540.0,60539.0,0.84297355]
[1720025236685,0.1891,60554.0,60553.0,0.18183231]
[1720025236887,0.2261568,60554.0,60553.0,0.27381696]
[1720025237089,0.2261568,60554.0,60553.0,0.41251696]
[1720025237698,0.2261568,60554.0,60553.0,0.27381696]
[1720025237899,0.2260568,60554.0,60553.0,0.27381696]
[1720025238101,0.2290568,60554.0,60553.0,0.27381696]
[1720025239054,0.22900286,60554.0,60553.0,0.27381696]
[1720025240039,0.23000286,60554.0,60553.0,0.27381696]
[1720025241072,0.23000286,60554.0,60553.0,0.09198465]
[1720025241183,0.23000286,60554.0,60550.0,0.13645146]
[1720025241384,0.53554486,60553.0,60549.0,0.13645146]
[1720025241631,0.193,60554.0,60548.0,0.22843611]
[1720025241632,0.76695586,60552.0,60548.0,0.22843611]
[1720025241849,0.1891,60549.0,60548.0,0.22843611]
[1720025242263,0.1891,60549.0,60548.0,0.09198465]
[1720025242264,0.21980165,60549.0,60548.0,0.09198465]
[1720025242819,2.04395465,60549.0,60544.0,0.09198465]
[1720025243043,2.04395465,60549.0,60539.0,0.000924]
[1720025243044,0.0004,60540.0,60539.0,0.000924]
[1720025243256,0.21990165,60540.0,60530.0,0.13645146]
[1720025243459,0.1892,60534.0,60531.0,0.09198465]
[1720025243692,0.1892,60534.0,60524.0,0.08345991]
[1720025243693,0.0004,60531.0,60527.0,0.14366262]
[1720025243895,0.0004,60531.0,60523.0,0.24545146]
[1720025243896,0.03070165,60530.0,60529.0,0.09198465]
[1720025244092,0.1892,60530.0,60529.0,0.09198465]
[1720025244310,0.21990165,60530.0,60529.0,0.09198465]
[1720025244513,0.21990165,60530.0,60529.0,0.27381696]
[1720025245142,0.1892,60530.0,60529.0,0.27381696]
[1720025245318,0.22539563,60530.0,60529.0,0.27381696]
[1720025246476,0.22639563,60530.0,60529.0,0.27381696]
[1720025246696,0.22639563,60530.0,60529.0,0.43411576]
[1720025246904,0.1902,60530.0,60529.0,0.43611576]
[1720025247106,0.001,60530.0,60529.0,0.46611576]
[1720025248386,0.001,60530.0,60529.0,0.43611576]
[1720025248577,0.0009,60530.0,60529.0,0.48779373]
[1720025248798,0.0009,60530.0,60529.0,0.51779373]
[1720025249006,0.0008,60530.0,60529.0,0.48779373]
[1720025249339,0.0008,60530.0,60529.0,0.62219373]
[1720025250506,0.1892,60535.0,60530.0,0.05167797]
[1720025250686,0.02728388,60534.0,60532.0,0.08015582]
[1720025250890,0.1892,60535.0,60533.0,0.1602988]
[1720025251085,0.02735044,60534.0,60533.0,0.43411576]
[1720025251383,0.1892,60535.0,60534.0,0.18183231]
[1720025251589,0.21655178,60535.0,60534.0,0.38873491]
[1720025251812,0.21655178,60535.0,60534.0,0.43411576]
[1720025252091,0.21655178,60535.0,60534.0,0.22843611]
[1720025252285,0.21655178,60535.0,60530.0,0.05167797]
[1720025252487,0.21655178,60535.0,60529.0,0.09698465]
[1720025252488,0.02775178,60534.0,60529.0,0.005]
[1720025252706,0.02775178,60534.0,60524.0,0.05167797]
[1720025252707,0.1892,60530.0,60524.0,0.05167797]
[1720025252907,0.1892,60525.0,60524.0,0.05167797]
[1720025253127,0.21655178,60525.0,60524.0,0.05167797]
[1720025253332,0.21655178,60525.0,60524.0,0.14366262]
[1720025253496,0.21645178,60525.0,60523.0,0.22843611]
[1720025253722,0.02735178,60524.0,60519.0,0.09198465]
[1720025253921,0.1892,60520.0,60519.0,0.09198465]
[1720025254148,1.11590888,60520.0,60519.0,0.09198465]
[1720025254360,1.11685041,60520.0,60519.0,0.14366262]
[1720025254524,1.05934841,60520.0,60519.0,0.14366262]
[1720025254727,0.83708231,60520.0,60519.0,0.14366262]
[1720025255128,0.74746431,60520.0,60519.0,0.14366262]
[1720025255389,0.79133841,60520.0,60514.0,0.18812943]
[1720025255539,0.1892,60515.0,60514.0,0.23351028]
[1720025255704,0.25542588,60515.0,60514.0,0.31272457]
[1720025256310,0.25575796,60515.0,60514.0,0.26734372]
[1720025256464,0.25575796,60515.0,60514.0,0.13183379]
[1720025256777,0.25775796,60515.0,60514.0,0.13183379]
[1720025257016,0.25775796,60515.0,60508.0,0.1383]
[1720025257017,0.25765796,60515.0,60507.0,0.009185]
[1720025257186,0.02775178,60514.0,60507.0,0.009185]
[1720025257322,0.0004,60512.0,60507.0,0.009185]
[1720025257526,1.36601086,60511.0,60507.0,0.009185]
[1720025257842,1.40528496,60511.0,60507.0,0.009185]
[1720025258031,1.40581747,60511.0,60507.0,0.009185]
[1720025258229,1.59541747,60511.0,60507.0,0.009185]
[1720025258424,1.40581747,60511.0,60507.0,0.009185]
[1720025258625,1.59501747,60511.0,60507.0,0.009185]
[1720025258884,1.41081747,60511.0,60507.0,0.009185]
[1720025259583,1.18973647,60511.0,60507.0,0.22072365]
[1720025259785,1.16570047,60511.0,60507.0,0.08934082]
[1720025260003,1.15547547,60511.0,60507.0,0.08934082]
[1720025260202,1.15537547,60511.0,60507.0,0.08934082]
[1720025260433,1.15537547,60511.0,60507.0,0.009185]
[1720025260434,1.15037547,60511.0,60507.0,0.009185]
[1720025260609,1.33997547,60511.0,60507.0,0.009185]
[1720025260753,1.34497547,60511.0,60507.0,0.009185]
[1720025260952,1.11650137,60511.0,60507.0,0.009185]
[1720025261152,1.08795908,60511.0,60510.0,0.00084283]
[1720025261761,0.83267308,60511.0,60510.0,0.00084283]
[1720025262594,0.80705008,60511.0,60510.0,0.00084283]
[1720025263515,0.32933208,60511.0,60510.0,0.13222566]
[1720025263718,0.32933208,60511.0,60510.0,0.00084283]
[1720025263940,0.32933208,60511.0,60510.0,0.13222566]
[1720025264386,0.01213208,60511.0,60510.0,0.67948996]
[1720025264548,0.01203208,60511.0,60510.0,0.67948996]
[1720025265088,0.01193208,60511.0,60510.0,0.67948996]
[1720025266050,0.1892,60512.0,60511.0,0.09198465]
[1720025266209,0.1892,60512.0,60511.0,0.42904713]
[1720025267779,0.1902,60512.0,60511.0,0.43304713]
[1720025269276,0.1892,60512.0,60511.0,0.42904713]
[1720025269489,0.1902,60512.0,60511.0,0.43404713]
[1720025269672,0.1912,60512.0,60511.0,0.44104713]
[1720025269874,0.002,60512.0,60511.0,0.4877251]
[1720025270072,0.002,60512.0,60511.0,0.5177251]
[1720025270538,0.002,60512.0,60511.0,0.5227251]
[1720025270539,0.003,60512.0,60511.0,0.5227251]
[1720025270750,0.003,60512.0,60511.0,0.5177251]
[1720025270751,0.002,60512.0,60511.0,0.5177251]
[1720025271102,0.003,60512.0,60511.0,0.5227251]
[1720025271905,0.002,60512.0,60511.0,0.5157251]
[1720025272319,0.001,60512.0,60511.0,0.5177251]
[1720025272669,0.002,60512.0,60511.0,0.4917251]
[1720025272858,0.001,60512.0,60511.0,0.4847251]
[1720025273007,0.001,60512.0,60511.0,0.5147251]
[1720025273207,0.002,60512.0,60511.0,0.4917251]
[1720025273408,0.001,60512.0,60511.0,0.4877251]
[1720025273935,0.002,60512.0,60511.0,0.4917251]
[1720025274710,0.001,60512.0,60511.0,0.4847251]
[1720025275331,0.002,60512.0,60511.0,0.4917251]
[1720025275530,0.002,60512.0,60511.0,0.4918251]
[1720025278892,0.002,60512.0,60511.0,0.4919251]
[1720025280635,0.001,60512.0,60511.0,0.3276263]
[1720025280821,0.001,60512.0,60511.0,0.15086262]
[1720025281393,0.00013462,60512.0,60511.0,0.14386262]
[1720025281796,0.00013462,60512.0,60511.0,0.3266263]
[1720025282208,0.00013462,60512.0,60511.0,0.3306263]
[1720025282449,0.00013462,60512.0,60511.0,0.3246263]
[1720025282986,0.00053462,60512.0,60511.0,0.0062]
[1720025283173,1.78095062,60512.0,60511.0,0.0062]
[1720025283357,1.78095062,60512.0,60511.0,0.0002]
[1720025283358,1.826621,60512.0,60511.0,0.0002]
[1720025284214,1.826621,60512.0,60511.0,0.0012]
[1720025284559,1.826621,60512.0,60511.0,0.0002]
[1720025284765,1.826621,60512.0,60511.0,0.0012]
[1720025285610,1.826621,60512.0,60511.0,0.0042]
[1720025286262,0.0004,60511.0,60510.0,0.00084283]
[1720025286470,2.719134,60511.0,60510.0,0.00084283]
[1720025286700,2.74451682,60511.0,60510.0,0.00084283]
[1720025286891,1.17322982,60511.0,60510.0,0.00084283]
[1720025287097,1.36282982,60511.0,60510.0,0.00084283]
[1720025287426,1.55202982,60511.0,60510.0,0.00084283]
[1720025287628,1.36282982,60511.0,60510.0,0.00084283]
[1720025288019,1.36242982,60511.0,60510.0,0.00084283]
[1720025288918,0.06451445,60511.0,60510.0,0.17760651]
[1720025289134,0.21458282,60511.0,60510.0,0.42988996]
[1720025289514,0.21562863,60511.0,60510.0,0.42988996]
[1720025289738,0.1892,60511.0,60510.0,0.42988996]
[1720025290301,0.1952,60511.0,60510.0,0.43088996]
[1720025290499,0.006,60511.0,60510.0,0.43088996]
[1720025290842,0.0002,60515.0,60511.0,0.17676368]
[1720025290969,0.0002,60515.0,60514.0,0.2569195]
[1720025291169,0.02610555,60515.0,60514.0,0.74870295]
[1720025291389,0.02610555,60515.0,60514.0,0.80038092]
[1720025291390,0.0002,60515.0,60514.0,0.80038092]
[1720025292222,0.0032,60515.0,60514.0,0.80038092]
[1720025292792,0.0042,60515.0,60514.0,0.80038092]
[1720025293398,0.0002,60515.0,60514.0,0.80038092]
[1720025293600,0.0012,60515.0,60514.0,0.81138092]
[1720025293818,0.0032,60515.0,60514.0,0.81138092]
[1720025294056,0.0012,60515.0,60514.0,0.81138092]
[1720025294222,0.0002,60515.0,60514.0,0.80038092]
[1720025294420,0.0012,60515.0,60514.0,0.80938092]
[1720025294618,0.0012,60515.0,60514.0,0.83938092]
[1720025294843,0.62522203,60539.0,60514.0,0.83938092]